fUST/lending_fUST_20240825
["ID","MTS","AMOUNT","RATE_DAILY","PERIOD"]
[335834525,1724523050394,-568.938382,0.00013698,2]
[335834527,1724523050406,-726.15,0.00013698,2]
[335834530,1724523050418,-1027.72,0.00013698,2]
[335834532,1724523050429,-500.0,0.00013698,2]
[335834534,1724523050443,-500.0,0.00013698,2]
[335834536,1724523050453,-500.0,0.00013698,2]
[335834538,1724523050464,-507.67,0.00013698,2]
[335834540,1724523050476,-500.0,0.00013698,2]
[335834542,1724523050486,-500.0,0.00013698,2]
[335834544,1724523050495,-500.0,0.00013698,2]
[335834546,1724523050505,-500.0,0.00013698,2]
[335834548,1724523050514,-500.0,0.00013698,2]
[335834550,1724523050524,-876.91,0.00013698,2]
[335834552,1724523050534,-4699.31,0.00013698,2]
[335834554,1724523050545,-1669.9,0.00013698,2]
[335834556,1724523050554,-598.70782263,0.00013698,2]
[335834558,1724523050564,-829.35,0.00013698,2]
[335834560,1724523050573,-500.0,0.00013698,2]
[335834562,1724523050583,-500.0,0.00013698,2]
[335834565,1724523050594,-894.4,0.00013698,2]
[335834567,1724523050604,-500.0,0.00013698,2]
[335834569,1724523050615,-500.0,0.00013698,2]
[335834571,1724523050626,-2022.53,0.00013698,2]
[335834573,1724523050638,-500.0,0.00013698,2]
[335834575,1724523050649,-500.0,0.00013698,2]
[335834577,1724523050660,-500.0,0.00013698,2]
[335834579,1724523050669,-577.95,0.00013698,2]
[335834581,1724523050679,-500.0,0.00013698,2]
[335834583,1724523050690,-5620.47,0.00013698,2]
[335834585,1724523050699,-500.0,0.00013698,2]
[335834587,1724523050709,-888.08,0.00013698,2]
[335834589,1724523050718,-1777.06,0.00013698,2]
[335834591,1724523050730,-500.0,0.00013698,2]
[335834593,1724523050739,-981.49,0.00013698,2]
[335834595,1724523050748,-500.0,0.00013698,2]
[335834597,1724523050758,-500.0,0.00013698,2]
[335834599,1724523050768,-500.0,0.00013698,2]
[335834602,1724523050778,-500.0,0.00013698,2]
[335834604,1724523050789,-2246.16,0.00013698,2]
[335834606,1724523050800,-2164.08,0.00013698,2]
[335834608,1724523050810,-600.99,0.00013698,2]
[335834610,1724523050820,-500.0,0.00013698,2]
[335834612,1724523050830,-500.0,0.00013698,2]
[335834614,1724523050840,-500.0,0.00013698,2]
[335834616,1724523050850,-500.0,0.00013698,2]
[335834618,1724523050859,-3354.95,0.00013698,2]
[335834620,1724523050870,-500.0,0.00013698,2]
[335834622,1724523050880,-963.58,0.00013698,2]
[335834624,1724523050891,-6921.57,0.00013698,2]
[335834627,1724523050903,-500.0,0.00013698,2]
[335834629,1724523050913,-500.0,0.00013698,2]
[335834631,1724523050923,-500.0,0.00013698,2]
[335834633,1724523050932,-500.0,0.00013698,2]
[335834635,1724523050941,-500.0,0.00013698,2]
[335834637,1724523050951,-500.0,0.00013698,2]
[335834639,1724523050963,-500.0,0.00013698,2]
[335834641,1724523050972,-500.0,0.00013698,2]
[335834643,1724523050984,-500.0,0.00013698,2]
[335834645,1724523050993,-500.0,0.00013698,2]
[335834647,1724523051003,-500.0,0.00013698,2]
[335834649,1724523051012,-500.0,0.00013698,2]
[335834651,1724523051022,-500.0,0.00013698,2]
[335834653,1724523051034,-500.0,0.00013698,2]
[335834655,1724523051043,-500.0,0.00013698,2]
[335834657,1724523051052,-589.12,0.00013698,2]
[335834659,1724523051062,-500.0,0.00013698,2]
[335834661,1724523051071,-500.0,0.00013698,2]
[335834663,1724523051080,-500.0,0.00013698,2]
[335834665,1724523051089,-500.0,0.00013698,2]
[335834667,1724523051099,-500.0,0.00013698,2]
[335834669,1724523051108,-500.0,0.00013698,2]
[335834671,1724523051117,-500.0,0.00013698,2]
[335834673,1724523051127,-500.0,0.00013698,2]
[335834675,1724523051136,-500.0,0.00013698,2]
[335834677,1724523051145,-500.0,0.00013698,2]
[335834679,1724523051154,-964.83,0.00013698,2]
[335834681,1724523051164,-500.0,0.00013698,2]
[335834683,1724523051174,-500.0,0.00013698,2]
[335834685,1724523051183,-500.0,0.00013698,2]
[335834687,1724523051192,-500.0,0.00013698,2]
[335834689,1724523051202,-500.0,0.00013698,2]
[335834691,1724523051211,-1331.16,0.00013698,2]
[335834693,1724523051221,-680.58,0.00013698,2]
[335834695,1724523051232,-500.0,0.00013698,2]
[335834697,1724523051241,-2312.0,0.00013698,2]
[335834699,1724523051251,-500.0,0.00013698,2]
[335834701,1724523051261,-500.0,0.00013698,2]
[335834703,1724523051271,-747.28,0.00013698,2]
[335834705,1724523051280,-1757.74,0.00013698,2]
[335834707,1724523051289,-500.0,0.00013698,2]
[335834709,1724523051299,-501.46257399,0.00013698,2]
[335834711,1724523051308,-1168.41,0.00013698,2]
[335834713,1724523051317,-11668.22,0.00013698,2]
[335834715,1724523051327,-500.0,0.00013698,2]
[335834717,1724523051337,-500.0,0.00013698,2]
[335834720,1724523051349,-2291.49,0.00013698,2]
[335834722,1724523051357,-734.33,0.00013698,2]
[335834724,1724523051366,-500.0,0.00013698,2]
[335834726,1724523051376,-1341.91,0.00013698,2]
[335834728,1724523051385,-500.0,0.00013698,2]
[335834730,1724523051395,-568.24,0.00013698,2]
[335834732,1724523051405,-288.59748126,0.00013698,2]
[335834734,1724523051415,-1504.37,0.00013698,2]
[335834736,1724523051424,-500.0,0.00013698,2]
[335834738,1724523051438,-830.19,0.00013698,2]
[335834740,1724523051447,-694.65,0.00013698,2]
[335834742,1724523051457,-500.0,0.00013698,2]
[335834744,1724523051467,-500.0,0.00013698,2]
[335834746,1724523051478,-290.10034841,0.00013698,2]
[335834748,1724523051488,-1000.0,0.00013698,2]
[335834750,1724523051497,-500.0,0.00013698,2]
[335834752,1724523051507,-500.0,0.00013698,2]
[335834754,1724523051517,-303.83652486,0.00013698,2]
[335834756,1724523051527,-1425.78,0.00013698,2]
[335834758,1724523051536,-500.0,0.00013698,2]
[335834760,1724523051546,-500.0,0.00013698,2]
[335834762,1724523051556,-500.0,0.00013698,2]
[335834764,1724523051566,-500.0,0.00013698,2]
[335834766,1724523051575,-611.61745047,0.00013698,2]
[335834768,1724523051585,-500.0,0.00013698,2]
[335834770,1724523051594,-3637.54,0.00013698,2]
[335834773,1724523051613,-890.65,0.00013698,2]
[335834776,1724523051628,-1943.7,0.00013698,2]
[335834778,1724523051639,-873.67,0.00013698,2]
[335834780,1724523051650,-500.0,0.00013698,2]
[335834782,1724523051661,-500.0,0.00013698,2]
[335834784,1724523051672,-3330.31,0.00013698,2]
[335834786,1724523051681,-668.06,0.00013698,2]
[335834788,1724523051691,-514.6193542,0.00013698,2]
[335834790,1724523051700,-500.0,0.00013698,2]
[335834792,1724523051710,-500.0,0.00013698,2]
[335834795,1724523051721,-2428.5,0.00013698,2]
[335834797,1724523051733,-500.0,0.00013698,2]
[335834799,1724523051744,-500.0,0.00013698,2]
[335834801,1724523051754,-1049.11,0.00013698,2]
[335834803,1724523051764,-500.0,0.00013698,2]
[335834805,1724523051774,-667.84,0.00013698,2]
[335834807,1724523051784,-3080.13,0.00013698,2]
[335834809,1724523051794,-500.0,0.00013698,2]
[335834810,1724523051803,-949.57,0.00013698,2]
[335834811,1724523051813,-500.0,0.00013698,2]
[335834812,1724523051822,-500.0,0.00013698,2]
[335834813,1724523051832,-515.18274963,0.00013698,2]
[335834814,1724523051843,-8484.66,0.00013698,2]
[335834815,1724523051852,-643.55,0.00013698,2]
[335834816,1724523051862,-500.0,0.00013698,2]
[335834817,1724523051872,-500.0,0.00013698,2]
[335834818,1724523051881,-942.78,0.00013698,2]
[335834819,1724523051891,-500.0,0.00013698,2]
[335834820,1724523051901,-500.0,0.00013698,2]
[335834821,1724523051911,-2726.76,0.00013698,2]
[335834822,1724523051922,-500.0,0.00013698,2]
[335834824,1724523051932,-500.0,0.00013698,2]
[335834826,1724523051942,-1435.59,0.00013698,2]
[335834828,1724523051953,-513.99772868,0.00013698,2]
[335834830,1724523051963,-753.03,0.00013698,2]
[335834832,1724523051973,-500.0,0.00013698,2]
[335834834,1724523051988,-5603.49,0.00013698,2]
[335834836,1724523051998,-3141.26,0.00013698,2]
[335834838,1724523052008,-500.0,0.00013698,2]
[335834840,1724523052018,-500.0,0.00013698,2]
[335834842,1724523052028,-719.59,0.00013698,2]
[335834844,1724523052039,-502.80770352,0.00013698,2]
[335834846,1724523052050,-500.0,0.00013698,2]
[335834848,1724523052059,-647.39,0.00013698,2]
[335834850,1724523052068,-500.0,0.00013698,2]
[335834852,1724523052078,-500.0,0.00013698,2]
[335834854,1724523052087,-897.05,0.00013698,2]
[335834856,1724523052097,-500.0,0.00013698,2]
[335834858,1724523052107,-1212.16930048,0.00013698,2]
[335835564,1724523590594,24900.0,0.00011733,2]
[335835567,1724523603236,156.92948105,0.00011999,2]
[335835569,1724523680248,250.0,0.00012058,2]
[335835570,1724523680635,250.0,0.00012091,2]
[335835571,1724523732180,227.43413569,0.0001211,2]
[335835572,1724523781746,300.0,0.00012109,2]
[335835574,1724523782579,300.0,0.00012109,2]
[335835575,1724523800825,19522.97338965,0.00012109,2]
[335835576,1724523808375,218.82052404,0.00012109,2]
[335835577,1724523814819,1169.15758741,0.00012109,2]
[335835578,1724523823641,9043.73150202,0.00012109,2]
[335835579,1724523827474,4723.09096721,0.00012109,2]
[335835580,1724523827603,939.08236877,0.00012109,2]
[335835581,1724523827729,10165.59047205,0.00012109,2]
[335835582,1724523833885,406.89428367,0.00012109,2]
[335835583,1724523847154,1313.75387596,0.00012109,2]
[335835586,1724523858827,192.90353875,0.00012109,2]
[335835588,1724523908878,220.17277016,0.00012109,2]
[335835589,1724523941470,163.14332881,0.00012109,2]
[335835593,1724523974815,230.90092991,0.0001211,2]
[335835598,1724524026279,320.43172091,0.00011999,2]
[335835599,1724524031112,-250.0,0.00012124,2]
[335835600,1724524031136,-250.0,0.00012157,2]
[335835601,1724524031157,-300.0,0.00012162,2]
[335835602,1724524031179,-46.27589486,0.00012162,2]
[335835603,1724524031923,500.0,0.00012,2]
[335835608,1724524091257,9664.212107,0.00011999,2]
[335835610,1724524095627,5363.68109423,0.00012,2]
[335835618,1724524122324,154.72922386,0.00011999,2]
[335835620,1724524133061,11129.54101145,0.00012019,2]
[335835635,1724524178556,250.0,0.00011447,2]
[335835636,1724524178681,250.0,0.00011479,2]
[335835637,1724524178917,250.0,0.0001151,2]
[335835638,1724524179146,250.0,0.00011541,2]
[335835639,1724524179364,250.0,0.00011573,2]
[335835640,1724524179574,250.0,0.00011604,2]
[335835641,1724524179819,250.0,0.00011636,2]
[335835642,1724524180047,250.0,0.00011667,2]
[335835643,1724524180098,934.23595312,0.0001202,2]
[335835644,1724524180296,250.0,0.00011698,2]
[335835645,1724524180528,250.0,0.0001173,2]
[335835646,1724524180755,250.0,0.00011761,2]
[335835647,1724524181163,250.0,0.00011792,2]
[335835648,1724524181376,250.0,0.00011824,2]
[335835649,1724524181666,250.0,0.00011855,2]
[335835650,1724524181887,250.0,0.00011887,2]
[335835651,1724524182116,250.0,0.00011918,2]
[335835652,1724524182327,250.0,0.00011949,2]
[335835653,1724524182562,250.0,0.00011981,2]
[335835654,1724524182779,250.0,0.00012012,2]
[335835655,1724524183061,250.0,0.00012044,2]
[335835666,1724524232586,-300.0,0.00012119,2]
[335835668,1724524232595,-300.0,0.00012119,2]
[335835670,1724524232605,-396.43028013,0.000123,2]
[335835671,1724524232615,-7016.80902756,0.00012356,2]
[335835672,1724524232625,-3094.20831595,0.00012356,2]
[335835673,1724524232634,-22006.00212483,0.00012356,2]
[335835674,1724524232651,-192.0965735,0.00012502,2]
[335835675,1724524232660,-2713.96502114,0.00012516,2]
[335835676,1724524232670,-2283.63676209,0.00012516,3]
[335835677,1724524232679,-4922.96579064,0.00012516,2]
[335835678,1724524232691,-2544.52556594,0.00012516,2]
[335835682,1724524232775,-1381.06895201,0.00012516,2]
[335835684,1724524232785,-2596.97571274,0.00012551,2]
[335835685,1724524232794,-2596.97571274,0.00012551,2]
[335835686,1724524232804,-1767.29008818,0.00012551,2]
[335835687,1724524232814,-4323.5637296,0.00012629,2]
[335835688,1724524232823,-231.51811386,0.00012689,2]
[335835689,1724524232832,-94.42265524,0.00012749,2]
[335835690,1724524235111,42432.2789175,0.00011987,2]
[335835701,1724524238864,-405.57734476,0.00012749,2]
[335835702,1724524238874,-551.22,0.00012749,2]
[335835703,1724524238884,-1500.0,0.00012779,2]
[335835704,1724524238894,-318.90265524,0.00012779,2]
[335835727,1724524240992,-2596.97571274,0.00012516,2]
[335835729,1724524241002,-195.69181628,0.00012689,2]
[335835732,1724524241011,-535.11790599,0.00012689,2]
[335835734,1724524241021,-1295.332108,0.00012779,2]
[335835736,1724524241031,-544.2854961,0.00012779,2]
[335835738,1724524241041,-780.4368108,0.00012779,2]
[335835740,1724524241050,-817.95411776,0.00012782,2]
[335835742,1724524241060,-811.79481334,0.00012782,2]
[335835744,1724524241069,-862.18067108,0.00012782,2]
[335835746,1724524241078,-899.22793923,0.00012782,2]
[335835748,1724524241087,-605.706593,0.00012877,2]
[335835749,1724524241096,-12547.82602829,0.00012885,2]
[335835752,1724524241106,-183.04136441,0.00012886,2]
[335835754,1724524241116,-160.93233548,0.00012886,2]
[335835756,1724524241126,-2000.0,0.00012889,2]
[335835758,1724524241135,-997.64976914,0.00012897,2]
[335835760,1724524241144,-196.77202293,0.00012898,2]
[335835762,1724524241155,-2129.03639097,0.00012898,2]
[335835764,1724524241164,-155.34423056,0.00012898,2]
[335835766,1724524241174,-154.72922386,0.00012898,2]
[335835768,1724524241183,-404.63763456,0.00012898,2]
[335835770,1724524241193,-154.76012181,0.00012898,2]
[335835772,1724524241203,-934.26607432,0.00012898,2]
[335835774,1724524241212,-196.90814632,0.00012898,2]
[335835776,1724524241221,-163.83475432,0.00012898,2]
[335835778,1724524241230,-776.68392197,0.00012898,2]
[335835779,1724524241239,-154.72922386,0.00012898,2]
[335835782,1724524241249,-157.17582995,0.00012898,2]
[335835784,1724524241259,-9008.00630102,0.000129,2]
[335835786,1724524241268,-155.07432915,0.00012934,2]
[335835788,1724524241277,-729.15793853,0.00012934,2]
[335835790,1724524241287,-155.48534041,0.00012934,2]
[335835792,1724524241296,-154.72922386,0.00012934,2]
[335835794,1724524241306,-180.41738215,0.00012934,2]
[335835796,1724524241315,-155.18235923,0.00012971,2]
[335835798,1724524241326,-154.72922386,0.00012971,2]
[335835800,1724524241335,-569.85049545,0.00012971,2]
[335835802,1724524241345,-154.72922386,0.00012971,2]
[335835804,1724524241353,-154.72922386,0.00012971,2]
[335835806,1724524241362,-223.63719614,0.00012971,2]
[335835808,1724524241371,-602.18885266,0.00012971,2]
[335835809,1724524241379,-154.72922386,0.00012971,2]
[335835811,1724524241388,-665.79988618,0.00012971,2]
[335835813,1724524241397,-99765.9094896,0.00012981,2]
[335835815,1724524241406,-223.63719614,0.00012985,2]
[335835817,1724524241415,-154.72922386,0.00012985,2]
[335835819,1724524241424,-154.72922386,0.00012985,2]
[335835821,1724524241433,-346.46491659,0.00012985,2]
[335835823,1724524241442,-154.72922386,0.00012985,2]
[335835825,1724524241452,-180.88265675,0.00012985,2]
[335835827,1724524241461,-154.72922386,0.00012985,2]
[335835829,1724524241470,-695.14803561,0.00012989,2]
[335835831,1724524241479,-520.92060091,0.00012989,2]
[335835833,1724524241488,-2167.30721455,0.00012999,2]
[335835836,1724524241499,-500.0,0.00013,2]
[335835838,1724524241509,-862.94176999,0.00013,2]
[335835840,1724524241518,-153.0,0.00013014,2]
[335835842,1724524241526,-818.2250777,0.00013041,2]
[335835843,1724524241535,-409.2733729,0.00013041,2]
[335835845,1724524241545,-409.2733729,0.00013041,2]
[335835847,1724524241554,-409.2733729,0.00013041,2]
[335835849,1724524241563,-818.424462,0.00013041,2]
[335835851,1724524241573,-12547.82602826,0.00013063,2]
[335835853,1724524241583,-6934.6596212,0.00013101,2]
[335835855,1724524241592,-153.0,0.00013151,2]
[335835857,1724524241601,-306.0,0.00013151,2]
[335835859,1724524241610,-207.7300879,0.00013151,2]
[335835861,1724524241619,-818.5467458,0.00013151,2]
[335835863,1724524241628,-153.0,0.00013151,2]
[335835865,1724524241637,-207.7300879,0.00013151,2]
[335835867,1724524241647,-153.0,0.00013151,2]
[335835869,1724524241656,-207.7300879,0.00013151,2]
[335835872,1724524241666,-207.7300879,0.00013151,2]
[335835874,1724524241675,-207.7300879,0.00013151,2]
[335835876,1724524241685,-153.0,0.00013151,2]
[335835878,1724524241694,-207.7300879,0.00013151,2]
[335835880,1724524241703,-153.0,0.00013151,2]
[335835881,1724524241712,-153.0,0.00013151,2]
[335835883,1724524241721,-500.0,0.00013178,2]
[335835885,1724524241731,-500.0,0.00013178,2]
[335835887,1724524241740,-397.57546869,0.00013239,2]
[335835889,1724524241750,-12547.82602826,0.00013242,2]
[335835891,1724524241759,-420.0,0.00013302,2]
[335835893,1724524241768,-420.0,0.00013331,2]
[335835895,1724524241777,-493.58061031,0.00013333,2]
[335835897,1724524241786,-493.58061031,0.00013333,2]
[335835899,1724524241795,-3391.47770292,0.00013374,2]
[335835901,1724524241805,-99765.9094896,0.00013378,2]
[335835903,1724524241815,-28757.81905081,0.00013388,2]
[335835905,1724524241824,-35423.76452097,0.00013388,2]
[335835907,1724524241835,-150.112233,0.000134,2]
[335835909,1724524241845,-12547.82602826,0.0001342,2]
[335835911,1724524241859,-199531.818979,0.00013467,2]
[335835913,1724524241868,-3749.01365244,0.00013474,2]
[335835915,1724524241877,-82471.61960155,0.00013477,2]
[335835917,1724524241887,-5720.57521366,0.00013483,2]
[335835920,1724524241898,-154.98780454,0.00013496,2]
[335835922,1724524241907,-160.52328625,0.00013496,2]
[335835924,1724524241916,-209.7598205,0.00013497,2]
[335835926,1724524241925,-495.40667807,0.00013497,2]
[335835928,1724524241936,-209.7598205,0.00013497,2]
[335835930,1724524241947,-154.72922386,0.00013497,2]
[335835932,1724524241956,-210.34587067,0.00013497,2]
[335835933,1724524241966,-2143.85143782,0.00013497,2]
[335835934,1724524241975,-150.112233,0.000135,2]
[335835947,1724524242179,-150.112233,0.000135,2]
[335835951,1724524242206,-150.112233,0.000135,2]
[335835953,1724524242216,-150.112233,0.000135,2]
[335835955,1724524242227,-150.112233,0.000135,2]
[335835957,1724524242238,-1000.0,0.00013526,2]
[335835959,1724524242249,-206.7090212,0.00013526,2]
[335835961,1724524242259,-296.83333728,0.00013529,2]
[335835963,1724524242269,-77495.93221207,0.00013541,2]
[335835966,1724524242280,-150.0,0.00013578,2]
[335835968,1724524242292,-156.92948105,0.00013596,2]
[335835970,1724524242304,-301.69894114,0.00013597,2]
[335835973,1724524242317,-155.32504483,0.00013597,2]
[335835975,1724524242328,-246.66928391,0.00013597,2]
[335835977,1724524242338,-12547.82602826,0.00013598,2]
[335835979,1724524242349,-5430.86153317,0.00013598,2]
[335836148,1724524243774,-174.92435112,0.00012689,2]
[335836150,1724524243783,-410.12896495,0.00012898,2]
[335836153,1724524243795,-111.48183922,0.00012898,2]
[335836155,1724524243804,-154.76012181,0.00012971,2]
[335836157,1724524243813,-413.88106461,0.00012971,2]
[335836158,1724524243822,-792.53813434,0.00013596,2]
[335836160,1724524243831,-34569.13846683,0.00013598,2]
[335836162,1724524243841,-309.18063735,0.00013599,2]
[335836165,1724524243853,-6.52629428,0.000136,2]
[335836168,1724524243866,-143.58593872,0.000136,2]
[335836172,1724524243875,-150.112241,0.000136,2]
[335836175,1724524243885,-150.112233,0.000136,2]
[335836179,1724524243895,-150.112233,0.000136,2]
[335836182,1724524243911,-150.112233,0.000136,2]
[335836185,1724524243920,-150.112233,0.000136,2]
[335836187,1724524243930,-150.112233,0.000136,2]
[335836189,1724524243940,-150.112233,0.000136,2]
[335836192,1724524243955,-2354.14744311,0.000136,2]
[335836194,1724524243964,-1000.0,0.00013615,2]
[335836196,1724524243974,-300.0,0.00013669,2]
[335836198,1724524243983,-500.0,0.00013673,2]
[335836200,1724524243992,-500.0,0.00013673,2]
[335836202,1724524244002,-500.0,0.00013673,2]
[335836204,1724524244011,-500.0,0.00013673,2]
[335836206,1724524244020,-600.0,0.00013676,2]
[335836208,1724524244029,-155.0,0.0001368,2]
[335836209,1724524244039,-423.58345055,0.00013688,2]
[335836212,1724524244048,-500.00000001,0.00013698,2]
[335836214,1724524244057,-500.0,0.00013698,2]
[335836216,1724524244067,-155.12815248,0.00013698,2]
[335836217,1724524244076,-500.0,0.00013698,2]
[335836219,1724524244085,-616.21891281,0.00013698,2]
[335836221,1724524244095,-500.0,0.00013698,2]
[335836223,1724524244105,-500.0,0.00013698,2]
[335836225,1724524244115,-620.0,0.00013698,2]
[335836227,1724524244125,-500.0,0.00013698,2]
[335836229,1724524244134,-500.0,0.00013698,2]
[335836231,1724524244143,-500.0,0.00013698,2]
[335836233,1724524244157,-500.0,0.00013698,2]
[335836235,1724524244167,-506.99417169,0.00013698,2]
[335836237,1724524244176,-500.0,0.00013698,2]
[335836239,1724524244185,-500.0,0.00013698,2]
[335836241,1724524244195,-500.0,0.00013698,2]
[335836242,1724524244205,-500.0,0.00013698,2]
[335836243,1724524244214,-500.0,0.00013698,2]
[335836244,1724524244223,-500.0,0.00013698,2]
[335836245,1724524244233,-500.0,0.00013698,2]
[335836246,1724524244243,-500.0,0.00013698,2]
[335836247,1724524244252,-500.0,0.00013698,2]
[335836248,1724524244262,-500.0,0.00013698,2]
[335836249,1724524244271,-500.0,0.00013698,2]
[335836250,1724524244280,-500.0,0.00013698,2]
[335836251,1724524244289,-500.0,0.00013698,2]
[335836252,1724524244299,-568.21022219,0.00013698,2]
[335836253,1724524244308,-500.0,0.00013698,2]
[335836255,1724524244317,-500.0,0.00013698,2]
[335836257,1724524244328,-500.57804816,0.00013698,2]
[335836260,1724524244337,-500.0,0.00013698,2]
[335836262,1724524244346,-500.0,0.00013698,2]
[335836263,1724524244355,-500.0,0.00013698,2]
[335836266,1724524244364,-500.0,0.00013698,2]
[335836267,1724524244374,-500.0,0.00013698,2]
[335836269,1724524244384,-500.0,0.00013698,2]
[335836272,1724524244393,-500.0,0.00013698,2]
[335836274,1724524244403,-794.95,0.00013698,2]
[335836276,1724524244413,-500.0,0.00013698,2]
[335836278,1724524244422,-500.0,0.00013698,2]
[335836280,1724524244431,-500.0,0.00013698,2]
[335836282,1724524244440,-500.0,0.00013698,2]
[335836284,1724524244449,-500.0,0.00013698,2]
[335836286,1724524244458,-500.0,0.00013698,2]
[335836288,1724524244468,-500.0,0.00013698,2]
[335836290,1724524244478,-500.0,0.00013698,2]
[335836292,1724524244487,-500.0,0.00013698,2]
[335836294,1724524244497,-500.0,0.00013698,2]
[335836296,1724524244506,-500.0,0.00013698,2]
[335836298,1724524244515,-500.0,0.00013698,2]
[335836300,1724524244524,-500.0,0.00013698,2]
[335836302,1724524244533,-500.0,0.00013698,2]
[335836304,1724524244543,-500.0,0.00013698,2]
[335836306,1724524244552,-500.0,0.00013698,2]
[335836308,1724524244561,-500.0,0.00013698,2]
[335836310,1724524244570,-500.0,0.00013698,2]
[335836312,1724524244580,-500.0,0.00013698,2]
[335836314,1724524244590,-685.22,0.00013698,2]
[335836316,1724524244601,-516.55611504,0.00013698,2]
[335836318,1724524244610,-500.0,0.00013698,2]
[335836321,1724524244621,-704.48,0.00013698,2]
[335836323,1724524244631,-500.0,0.00013698,2]
[335836325,1724524244642,-500.0,0.00013698,2]
[335836327,1724524244653,-500.0,0.00013698,2]
[335836329,1724524244663,-500.0,0.00013698,2]
[335836331,1724524244672,-509.51694536,0.00013698,2]
[335836333,1724524244682,-500.0,0.00013698,2]
[335836335,1724524244691,-500.0,0.00013698,2]
[335836337,1724524244701,-500.0,0.00013698,2]
[335836339,1724524244710,-500.0,0.00013698,2]
[335836341,1724524244719,-500.0,0.00013698,2]
[335836343,1724524244730,-500.0,0.00013698,2]
[335836345,1724524244739,-544.03,0.00013698,2]
[335836347,1724524244748,-834.49,0.00013698,2]
[335836349,1724524244758,-500.0,0.00013698,2]
[335836351,1724524244767,-500.0,0.00013698,2]
[335836353,1724524244778,-500.0,0.00013698,2]
[335836356,1724524244788,-590.47,0.00013698,2]
[335836358,1724524244798,-513.24810199,0.00013698,2]
[335836360,1724524244809,-150.0,0.00013698,2]
[335836362,1724524244820,-500.0,0.00013698,2]
[335836364,1724524244830,-500.0,0.00013698,2]
[335836366,1724524244841,-500.0,0.00013698,2]
[335836369,1724524244856,-500.0,0.00013698,2]
[335836371,1724524244866,-500.0,0.00013698,2]
[335836373,1724524244876,-706.83,0.00013698,2]
[335836375,1724524244886,-502.89244034,0.00013698,2]
[335836377,1724524244897,-534.06379751,0.00013698,2]
[335836379,1724524244906,-500.0,0.00013698,2]
[335836381,1724524244916,-500.0,0.00013698,2]
[335836383,1724524244926,-500.0,0.00013698,2]
[335836385,1724524244937,-500.0,0.00013698,2]
[335836387,1724524244948,-500.0,0.00013698,2]
[335836390,1724524244958,-500.0,0.00013698,2]
[335836392,1724524244970,-500.0,0.00013698,2]
[335836394,1724524244979,-500.0,0.00013698,2]
[335836396,1724524244988,-500.0,0.00013698,2]
[335836398,1724524244997,-500.0,0.00013698,2]
[335836400,1724524245007,-500.0,0.00013698,2]
[335836402,1724524245016,-500.0,0.00013698,2]
[335836404,1724524245027,-684.72,0.00013698,2]
[335836406,1724524245037,-500.0,0.00013698,2]
[335836408,1724524245050,-500.0,0.00013698,2]
[335836410,1724524245060,-500.0,0.00013698,2]
[335836412,1724524245070,-500.0,0.00013698,2]
[335836414,1724524245080,-500.0,0.00013698,2]
[335836416,1724524245089,-500.0,0.00013698,2]
[335836418,1724524245099,-500.0,0.00013698,2]
[335836420,1724524245108,-500.0,0.00013698,2]